[Event "Titled Tuesday Blitz June 15 2021"]
[White "Alavkin, Arseny"]
[Black "Cunjalo, Faris"]
[WhiteFideId "4120612"]
[BlackFideId "14410710"]
[WhiteElo "2401"]
[BlackElo "2234"]
[Result "1/2-1/2"]
[Round "05"]
[TimeControl "180+1"]
[Date "2021.06.15"]
[WhiteClock "0:01:34"]
[BlackClock "0:00:05"]

1. e4 {[%clk 0:03:00]}  c6 {[%clk 0:02:54]} 2. d4 {[%clk 0:03:00]}  d5 {[%clk 0:02:54]} 3. exd5 {[%clk 0:03:01]}  cxd5 {[%clk 0:02:54]} 4. Bd3 {[%clk 0:03:02]}  Nc6 {[%clk 0:02:54]} 5. c3 {[%clk 0:03:02]}  Qc7 {[%clk 0:02:55]} 6. Na3 {[%clk 0:03:01]}  a6 {[%clk 0:02:51]} 7. Nc2 {[%clk 0:03:01]}  Nf6 {[%clk 0:02:51]} 8. h3 {[%clk 0:03:02]}  g6 {[%clk 0:02:40]} 9. Ne2 {[%clk 0:03:01]}  Bg7 {[%clk 0:02:29]} 10. Bf4 {[%clk 0:02:59]}  Qb6 {[%clk 0:02:29]} 11. Rb1 {[%clk 0:02:57]}  O-O {[%clk 0:02:28]} 12. Ne3 {[%clk 0:02:57]}  Re8 {[%clk 0:02:23]} 13. O-O {[%clk 0:02:56]}  Bd7 {[%clk 0:02:12]} 14. Qb3 {[%clk 0:02:54]}  Qxb3 {[%clk 0:02:09]} 15. axb3 {[%clk 0:02:55]}  e5 {[%clk 0:02:08]} 16. dxe5 {[%clk 0:02:55]}  Nxe5 {[%clk 0:02:09]} 17. Bxe5 {[%clk 0:02:56]}  Rxe5 {[%clk 0:02:10]} 18. b4 {[%clk 0:02:57]}  Bh6 {[%clk 0:01:51]} 19. Nc2 {[%clk 0:02:56]}  Bf5 {[%clk 0:01:39]} 20. Bxf5 {[%clk 0:02:50]}  Rxe2 {[%clk 0:01:39]} 21. Bd3 {[%clk 0:02:49]}  Re7 {[%clk 0:01:37]} 22. Rfe1 {[%clk 0:02:49]}  Rae8 {[%clk 0:01:36]} 23. Kf1 {[%clk 0:02:47]}  Kf8 {[%clk 0:01:34]} 24. Rxe7 {[%clk 0:02:44]}  Rxe7 {[%clk 0:01:35]} 25. Re1 {[%clk 0:02:39]}  Ne4 {[%clk 0:01:35]} 26. Bxe4 {[%clk 0:02:36]}  dxe4 {[%clk 0:01:36]} 27. Rd1 {[%clk 0:02:36]}  Ke8 {[%clk 0:01:35]} 28. Ke2 {[%clk 0:02:35]}  f5 {[%clk 0:01:34]} 29. Nd4 {[%clk 0:02:33]}  Rd7 {[%clk 0:01:30]} 30. Nb3 {[%clk 0:02:32]}  Rxd1 {[%clk 0:01:30]} 31. Kxd1 {[%clk 0:02:33]}  b6 {[%clk 0:01:24]} 32. f3 {[%clk 0:02:28]}  exf3 {[%clk 0:01:17]} 33. gxf3 {[%clk 0:02:27]}  Kd7 {[%clk 0:01:17]} 34. Ke2 {[%clk 0:02:27]}  Bf4 {[%clk 0:01:11]} 35. Nd4 {[%clk 0:02:26]}  Be5 {[%clk 0:01:06]} 36. Nc2 {[%clk 0:02:25]}  g5 {[%clk 0:01:05]} 37. Ne1 {[%clk 0:02:23]}  h5 {[%clk 0:01:03]} 38. Nd3 {[%clk 0:02:23]}  Ke6 {[%clk 0:00:59]} 39. Ke3 {[%clk 0:02:15]}  Bh2 {[%clk 0:00:49]} 40. c4 {[%clk 0:02:11]}  Bg1+ {[%clk 0:00:49]} 41. Ke2 {[%clk 0:02:11]}  Bd4 {[%clk 0:00:48]} 42. b3 {[%clk 0:02:11]}  h4 {[%clk 0:00:43]} 43. Ne1 {[%clk 0:02:05]}  Bc3 {[%clk 0:00:34]} 44. Nd3 {[%clk 0:02:05]}  Bd4 {[%clk 0:00:33]} 45. Ne1 {[%clk 0:02:04]}  Kd6 {[%clk 0:00:32]} 46. Nd3 {[%clk 0:02:04]}  Kc6 {[%clk 0:00:21]} 47. Ne1 {[%clk 0:02:00]}  Bc3 {[%clk 0:00:15]} 48. Nd3 {[%clk 0:01:57]}  Kd6 {[%clk 0:00:14]} 49. Ke3 {[%clk 0:01:56]}  Ke6 {[%clk 0:00:12]} 50. Ke2 {[%clk 0:01:56]}  Kf6 {[%clk 0:00:07]} 51. Ke3 {[%clk 0:01:56]}  Ke7 {[%clk 0:00:06]} 52. Ke2 {[%clk 0:01:56]}  Bd4 {[%clk 0:00:06]} 53. Ne1 {[%clk 0:01:55]}  b5 {[%clk 0:00:02]} 54. Nd3 {[%clk 0:01:54]}  Kd6 {[%clk 0:00:02]} 55. Kf1 {[%clk 0:01:48]}  Ke6 {[%clk 0:00:02]} 56. Ke2 {[%clk 0:01:48]}  Kd6 {[%clk 0:00:03]} 57. Ne1 {[%clk 0:01:46]}  Kc6 {[%clk 0:00:03]} 58. Nd3 {[%clk 0:01:45]}  Kd7 {[%clk 0:00:04]} 59. Kf1 {[%clk 0:01:37]}  Ke6 {[%clk 0:00:05]} 60. Kg2 {[%clk 0:01:37]}  Kd6 {[%clk 0:00:05]} 61. Kf1 {[%clk 0:01:34]}  Ke6 {[%clk 0:00:05]} 1/2-1/2


[Site "https://www.chess.com"]

[Event "Titled Tuesday Blitz June 15 2021"]
[White "Arias, Juan Cruz"]
[Black "Shahaliyev, Ismayil"]
[WhiteFideId "118540"]
[BlackFideId "13406388"]
[WhiteElo "2083"]
[BlackElo "2105"]
[Result "1/2-1/2"]
[Round "05"]
[TimeControl "180+1"]
[Date "2021.06.15"]
[WhiteClock "0:00:14"]
[BlackClock "0:00:15"]

1. d4 {[%clk 0:03:00]}  Nf6 {[%clk 0:02:57]} 2. Nf3 {[%clk 0:03:00]}  e6 {[%clk 0:02:55]} 3. e3 {[%clk 0:03:00]}  c5 {[%clk 0:02:53]} 4. Bd3 {[%clk 0:03:00]}  cxd4 {[%clk 0:02:47]} 5. exd4 {[%clk 0:03:00]}  b6 {[%clk 0:02:48]} 6. O-O {[%clk 0:03:00]}  Bb7 {[%clk 0:02:48]} 7. Bg5 {[%clk 0:02:58]}  Be7 {[%clk 0:02:48]} 8. Nbd2 {[%clk 0:02:56]}  O-O {[%clk 0:02:46]} 9. c3 {[%clk 0:02:56]}  d6 {[%clk 0:02:45]} 10. Re1 {[%clk 0:02:56]}  Nbd7 {[%clk 0:02:44]} 11. Qe2 {[%clk 0:02:56]}  Re8 {[%clk 0:02:44]} 12. Ba6 {[%clk 0:02:55]}  Qc8 {[%clk 0:02:41]} 13. Bxb7 {[%clk 0:02:55]}  Qxb7 {[%clk 0:02:41]} 14. Bxf6 {[%clk 0:02:54]}  Nxf6 {[%clk 0:02:39]} 15. Ne4 {[%clk 0:02:52]}  Nxe4 {[%clk 0:02:35]} 16. Qxe4 {[%clk 0:02:53]}  Qxe4 {[%clk 0:02:35]} 17. Rxe4 {[%clk 0:02:54]}  b5 {[%clk 0:02:22]} 18. a3 {[%clk 0:02:51]}  Kf8 {[%clk 0:02:15]} 19. Nd2 {[%clk 0:02:49]}  a5 {[%clk 0:02:13]} 20. Ree1 {[%clk 0:02:39]}  Rec8 {[%clk 0:02:11]} 21. Kf1 {[%clk 0:02:33]}  d5 {[%clk 0:02:06]} 22. Nb3 {[%clk 0:02:22]}  Bd6 {[%clk 0:01:58]} 23. Rec1 {[%clk 0:02:18]}  Ke7 {[%clk 0:01:56]} 24. Ke2 {[%clk 0:02:17]}  h5 {[%clk 0:01:54]} 25. g3 {[%clk 0:02:17]}  g5 {[%clk 0:01:54]} 26. h3 {[%clk 0:02:16]}  h4 {[%clk 0:01:50]} 27. gxh4 {[%clk 0:02:08]}  gxh4 {[%clk 0:01:51]} 28. Kf3 {[%clk 0:02:07]}  Kf6 {[%clk 0:01:44]} 29. Nd2 {[%clk 0:02:04]}  b4 {[%clk 0:01:35]} 30. axb4 {[%clk 0:02:02]}  axb4 {[%clk 0:01:34]} 31. Rxa8 {[%clk 0:02:03]}  Rxa8 {[%clk 0:01:35]} 32. c4 {[%clk 0:02:03]}  dxc4 {[%clk 0:01:35]} 33. Nxc4 {[%clk 0:01:57]}  Bh2 {[%clk 0:01:33]} 34. Ne3 {[%clk 0:01:56]}  Ke7 {[%clk 0:01:30]} 35. d5 {[%clk 0:01:43]}  Ra2 {[%clk 0:01:07]} 36. dxe6 {[%clk 0:01:39]}  Rxb2 {[%clk 0:00:56]} 37. exf7 {[%clk 0:01:33]}  Kxf7 {[%clk 0:00:57]} 38. Rc6 {[%clk 0:01:26]}  Be5 {[%clk 0:00:49]} 39. Ke4 {[%clk 0:01:20]}  Bc3 {[%clk 0:00:46]} 40. Nd5 {[%clk 0:01:09]}  Be1 {[%clk 0:00:40]} 41. f4 {[%clk 0:01:01]}  b3 {[%clk 0:00:38]} 42. Rb6 {[%clk 0:00:47]}  Re2+ {[%clk 0:00:33]} 43. Kf5 {[%clk 0:00:35]}  b2 {[%clk 0:00:31]} 44. Nf6 {[%clk 0:00:18]}  Ke7 {[%clk 0:00:17]} 45. Ne4 {[%clk 0:00:14]}  Rc2 {[%clk 0:00:14]} 46. Ke5 {[%clk 0:00:13]}  Kd7 {[%clk 0:00:14]} 47. f5 {[%clk 0:00:13]}  Kc7 {[%clk 0:00:13]} 48. Rb3 {[%clk 0:00:09]}  Bg3+ {[%clk 0:00:12]} 49. Kd4 {[%clk 0:00:05]}  Bf4 {[%clk 0:00:10]} 50. f6 {[%clk 0:00:05]}  Bh6 {[%clk 0:00:06]} 51. Ke5 {[%clk 0:00:06]}  Re2 {[%clk 0:00:04]} 52. Kf5 {[%clk 0:00:05]}  Kc6 {[%clk 0:00:05]} 53. Kg6 {[%clk 0:00:04]}  Bf8 {[%clk 0:00:05]} 54. Ng5 {[%clk 0:00:04]}  Bc5 {[%clk 0:00:06]} 55. f7 {[%clk 0:00:03]}  Kd5 {[%clk 0:00:06]} 56. Rb5 {[%clk 0:00:03]}  Kc4 {[%clk 0:00:06]} 57. Rxc5+ {[%clk 0:00:03]}  Kxc5 {[%clk 0:00:07]} 58. f8=Q+ {[%clk 0:00:04]}  Kc4 {[%clk 0:00:08]} 59. Qb8 {[%clk 0:00:04]}  Kd3 {[%clk 0:00:08]} 60. Qd6+ {[%clk 0:00:04]}  Kc2 {[%clk 0:00:09]} 61. Qc5+ {[%clk 0:00:05]}  Kd1 {[%clk 0:00:08]} 62. Qd5+ {[%clk 0:00:05]}  Rd2 {[%clk 0:00:09]} 63. Qb3+ {[%clk 0:00:05]}  Kc1 {[%clk 0:00:08]} 64. Ne4 {[%clk 0:00:06]}  Rg2+ {[%clk 0:00:06]} 65. Kh5 {[%clk 0:00:06]}  b1=Q {[%clk 0:00:06]} 66. Qxb1+ {[%clk 0:00:06]}  Kxb1 {[%clk 0:00:07]} 67. Kxh4 {[%clk 0:00:06]}  Kc2 {[%clk 0:00:07]} 68. Ng3 {[%clk 0:00:06]}  Kd3 {[%clk 0:00:07]} 69. Kg4 {[%clk 0:00:07]}  Kd4 {[%clk 0:00:07]} 70. Kf4 {[%clk 0:00:07]}  Rf2+ {[%clk 0:00:07]} 71. Kg5 {[%clk 0:00:06]}  Ke5 {[%clk 0:00:07]} 72. h4 {[%clk 0:00:07]}  Rg2 {[%clk 0:00:07]} 73. Kg4 {[%clk 0:00:07]}  Rg1 {[%clk 0:00:08]} 74. h5 {[%clk 0:00:08]}  Kf6 {[%clk 0:00:08]} 75. Kh4 {[%clk 0:00:07]}  Ra1 {[%clk 0:00:08]} 76. h6 {[%clk 0:00:06]}  Ra4+ {[%clk 0:00:08]} 77. Kh3 {[%clk 0:00:07]}  Kg6 {[%clk 0:00:08]} 78. Kg2 {[%clk 0:00:08]}  Kxh6 {[%clk 0:00:09]} 79. Kf3 {[%clk 0:00:08]}  Kg5 {[%clk 0:00:09]} 80. Ne4+ {[%clk 0:00:09]}  Kf5 {[%clk 0:00:10]} 81. Nf2 {[%clk 0:00:10]}  Ra3+ {[%clk 0:00:10]} 82. Ke2 {[%clk 0:00:10]}  Kf4 {[%clk 0:00:10]} 83. Nd3+ {[%clk 0:00:10]}  Ke4 {[%clk 0:00:11]} 84. Nf2+ {[%clk 0:00:11]}  Kd4 {[%clk 0:00:11]} 85. Ng4 {[%clk 0:00:10]}  Rg3 {[%clk 0:00:11]} 86. Nf2 {[%clk 0:00:10]}  Re3+ {[%clk 0:00:11]} 87. Kd2 {[%clk 0:00:11]}  Rf3 {[%clk 0:00:11]} 88. Ke2 {[%clk 0:00:11]}  Rb3 {[%clk 0:00:12]} 89. Ng4 {[%clk 0:00:11]}  Ke4 {[%clk 0:00:11]} 90. Nf2+ {[%clk 0:00:11]}  Kf4 {[%clk 0:00:12]} 91. Nd3+ {[%clk 0:00:12]}  Ke4 {[%clk 0:00:12]} 92. Nf2+ {[%clk 0:00:11]}  Kd4 {[%clk 0:00:12]} 93. Ng4 {[%clk 0:00:12]}  Ra3 {[%clk 0:00:11]} 94. Nf2 {[%clk 0:00:12]}  Re3+ {[%clk 0:00:11]} 95. Kd2 {[%clk 0:00:12]}  Re8 {[%clk 0:00:10]} 96. Nd3 {[%clk 0:00:12]}  Rh8 {[%clk 0:00:10]} 97. Nf2 {[%clk 0:00:12]}  Rh4 {[%clk 0:00:09]} 98. Ke2 {[%clk 0:00:12]}  Ke5 {[%clk 0:00:09]} 99. Kf3 {[%clk 0:00:13]}  Rf4+ {[%clk 0:00:09]} 100. Ke3 {[%clk 0:00:13]}  Rf8 {[%clk 0:00:09]} 101. Nd3+ {[%clk 0:00:13]}  Kd5 {[%clk 0:00:10]} 102. Nf4+ {[%clk 0:00:14]}  Kc4 {[%clk 0:00:11]} 103. Ke4 {[%clk 0:00:14]}  Re8+ {[%clk 0:00:12]} 104. Kf3 {[%clk 0:00:14]}  Kd4 {[%clk 0:00:13]} 105. Ne2+ {[%clk 0:00:14]}  Kd3 {[%clk 0:00:13]} 106. Nf4+ {[%clk 0:00:15]}  Kd2 {[%clk 0:00:14]} 107. Nd5 {[%clk 0:00:15]}  Re3+ {[%clk 0:00:15]} 108. Nxe3 {[%clk 0:00:14]} 1/2-1/2


[Site "https://www.chess.com"]

[Event "Titled Tuesday Blitz June 15 2021"]
[White "Assaubayeva, Bibisara"]
[Black "Hansen, Eric"]
[WhiteFideId "13708694"]
[BlackFideId "2606771"]
[WhiteElo "2232"]
[BlackElo "2568"]
[Result "0-1"]
[Round "05"]
[TimeControl "180+1"]
[Date "2021.06.15"]
[WhiteClock "0:00:02"]
[BlackClock "0:00:18"]

1. d4 {[%clk 0:03:00]}  Nf6 {[%clk 0:02:58]} 2. c4 {[%clk 0:03:01]}  e6 {[%clk 0:02:52]} 3. Nc3 {[%clk 0:02:57]}  Bb4 {[%clk 0:02:51]} 4. f3 {[%clk 0:02:57]}  O-O {[%clk 0:02:50]} 5. a3 {[%clk 0:02:54]}  Bxc3+ {[%clk 0:02:50]} 6. bxc3 {[%clk 0:02:54]}  Nh5 {[%clk 0:02:49]} 7. Nh3 {[%clk 0:02:54]}  f5 {[%clk 0:02:49]} 8. e4 {[%clk 0:02:54]}  Nc6 {[%clk 0:02:35]} 9. Be2 {[%clk 0:02:51]}  d6 {[%clk 0:02:25]} 10. O-O {[%clk 0:02:48]}  f4 {[%clk 0:02:08]} 11. Nf2 {[%clk 0:02:31]}  e5 {[%clk 0:02:08]} 12. c5 {[%clk 0:02:25]}  dxc5 {[%clk 0:02:00]} 13. Qb3+ {[%clk 0:02:21]}  Kh8 {[%clk 0:01:57]} 14. dxc5 {[%clk 0:02:21]}  Ng3 {[%clk 0:01:22]} 15. Re1 {[%clk 0:01:26]}  Nxe2+ {[%clk 0:01:22]} 16. Rxe2 {[%clk 0:01:27]}  Qe7 {[%clk 0:01:21]} 17. Rd2 {[%clk 0:01:10]}  Be6 {[%clk 0:01:15]} 18. Qxb7 {[%clk 0:00:57]}  Na5 {[%clk 0:01:15]} 19. Qb5 {[%clk 0:00:54]}  Nb3 {[%clk 0:01:11]} 20. Rb1 {[%clk 0:00:37]}  Rab8 {[%clk 0:00:55]} 21. Rxb3 {[%clk 0:00:28]}  Bxb3 {[%clk 0:00:40]} 22. Qa5 {[%clk 0:00:16]}  Bc4 {[%clk 0:00:36]} 23. Rd1 {[%clk 0:00:14]}  Rb1 {[%clk 0:00:34]} 24. Qxa7 {[%clk 0:00:09]}  Rd8 {[%clk 0:00:26]} 25. Re1 {[%clk 0:00:09]}  h5 {[%clk 0:00:20]} 26. Qa4 {[%clk 0:00:06]}  Qxc5 {[%clk 0:00:18]} 27. Qa6 {[%clk 0:00:02]} 0-1


[Site "https://www.chess.com"]

[Event "Titled Tuesday Blitz June 15 2021"]
[White "Bluebaum, Matthias"]
[Black "Paravyan, David"]
[WhiteFideId "24651516"]
[BlackFideId "4194985"]
[WhiteElo "2685"]
[BlackElo "2562"]
[Result "1-0"]
[Round "05"]
[TimeControl "180+1"]
[Date "2021.06.15"]
[WhiteClock "0:00:44"]
[BlackClock "0:00:02"]

1. d4 {[%clk 0:03:00]}  d5 {[%clk 0:02:56]} 2. c4 {[%clk 0:03:01]}  e6 {[%clk 0:02:55]} 3. Nc3 {[%clk 0:03:01]}  Nf6 {[%clk 0:02:53]} 4. cxd5 {[%clk 0:03:01]}  exd5 {[%clk 0:02:54]} 5. Bg5 {[%clk 0:03:02]}  c6 {[%clk 0:02:52]} 6. e3 {[%clk 0:03:02]}  Bf5 {[%clk 0:02:51]} 7. Qf3 {[%clk 0:03:02]}  Bg6 {[%clk 0:02:45]} 8. Bxf6 {[%clk 0:03:02]}  Qxf6 {[%clk 0:02:46]} 9. Qxf6 {[%clk 0:03:01]}  gxf6 {[%clk 0:02:47]} 10. Nge2 {[%clk 0:02:56]}  Nd7 {[%clk 0:02:39]} 11. h4 {[%clk 0:02:54]}  h6 {[%clk 0:02:27]} 12. h5 {[%clk 0:02:29]}  Bh7 {[%clk 0:02:26]} 13. Ng3 {[%clk 0:02:25]}  Bd6 {[%clk 0:02:26]} 14. f4 {[%clk 0:02:26]}  Rg8 {[%clk 0:02:21]} 15. Kf2 {[%clk 0:02:26]}  Ke7 {[%clk 0:01:47]} 16. Rd1 {[%clk 0:02:25]}  Ke6 {[%clk 0:01:42]} 17. Be2 {[%clk 0:01:58]}  Rg7 {[%clk 0:01:41]} 18. Bf3 {[%clk 0:01:57]}  Rag8 {[%clk 0:01:34]} 19. Nf1 {[%clk 0:01:55]}  Bf5 {[%clk 0:01:26]} 20. Nh2 {[%clk 0:01:48]}  Ke7 {[%clk 0:01:22]} 21. g4 {[%clk 0:01:46]}  Bc2 {[%clk 0:01:05]} 22. Rd2 {[%clk 0:01:42]}  Bh7 {[%clk 0:01:03]} 23. f5 {[%clk 0:01:39]}  Bxh2 {[%clk 0:00:27]} 24. Rxh2 {[%clk 0:01:40]}  Rxg4 {[%clk 0:00:27]} 25. Bxg4 {[%clk 0:01:41]}  Rxg4 {[%clk 0:00:27]} 26. Kf1 {[%clk 0:01:42]}  Bxf5 {[%clk 0:00:12]} 27. Rdg2 {[%clk 0:01:42]}  Rg5 {[%clk 0:00:10]} 28. Ne2 {[%clk 0:01:31]}  Be4 {[%clk 0:00:05]} 29. Rg3 {[%clk 0:01:31]}  Nf8 {[%clk 0:00:04]} 30. Kf2 {[%clk 0:01:29]}  Ne6 {[%clk 0:00:03]} 31. Nf4 {[%clk 0:01:30]}  Rf5 {[%clk 0:00:02]} 32. Rh4 {[%clk 0:01:30]}  Ng5 {[%clk 0:00:02]} 33. Ke2 {[%clk 0:01:30]}  Bb1 {[%clk 0:00:02]} 34. a3 {[%clk 0:01:29]}  Ba2 {[%clk 0:00:03]} 35. Kd3 {[%clk 0:01:24]}  Bc4+ {[%clk 0:00:04]} 36. Kc2 {[%clk 0:01:24]}  Ne4 {[%clk 0:00:02]} 37. Rg8 {[%clk 0:01:21]}  Rg5 {[%clk 0:00:03]} 38. Rg4 {[%clk 0:01:20]}  Nf2 {[%clk 0:00:03]} 39. Rg2 {[%clk 0:01:19]}  Ne4 {[%clk 0:00:01]} 40. Rh8 {[%clk 0:01:19]}  Bf1 {[%clk 0:00:01]} 41. Rh2 {[%clk 0:01:15]}  f5 {[%clk 0:00:01]} 42. Rxh6 {[%clk 0:01:15]}  Nf6 {[%clk 0:00:01]} 43. Rh8 {[%clk 0:01:13]}  Ng4 {[%clk 0:00:02]} 44. Rh1 {[%clk 0:01:10]}  Nxe3+ {[%clk 0:00:02]} 45. Kd2 {[%clk 0:01:10]}  Nc4+ {[%clk 0:00:03]} 46. Ke1 {[%clk 0:01:10]}  Bg2 {[%clk 0:00:01]} 47. Rg1 {[%clk 0:01:09]}  Rg4 {[%clk 0:00:01]} 48. Nxg2 {[%clk 0:01:10]}  f4 {[%clk 0:00:01]} 49. Kf2 {[%clk 0:01:10]}  Nd2 {[%clk 0:00:01]} 50. h6 {[%clk 0:00:47]}  Ne4+ {[%clk 0:00:02]} 51. Kf3 {[%clk 0:00:46]}  f5 {[%clk 0:00:02]} 52. h7 {[%clk 0:00:44]}  Ng5+ {[%clk 0:00:02]} 53. Kf2 {[%clk 0:00:43]}  Nh3+ {[%clk 0:00:03]} 54. Kf1 {[%clk 0:00:44]}  f3 {[%clk 0:00:01]} 55. Re8+ {[%clk 0:00:44]}  Kxe8 {[%clk 0:00:02]} 56. h8=Q+ {[%clk 0:00:44]} 1-0


[Site "https://www.chess.com"]

[Event "Titled Tuesday Blitz June 15 2021"]
[White "Bologan, Victor"]
[Black "Martinez Alcantara, Jose Eduardo"]
[WhiteFideId "13900048"]
[BlackFideId "3805662"]
[WhiteElo "2511"]
[BlackElo "2690"]
[Result "1-0"]
[Round "05"]
[TimeControl "180+1"]
[Date "2021.06.15"]
[WhiteClock "0:00:07"]
[BlackClock "0:00:02"]

1. e4 {[%clk 0:03:00]}  c5 {[%clk 0:02:57]} 2. Nf3 {[%clk 0:03:00]}  d6 {[%clk 0:02:57]} 3. c3 {[%clk 0:03:00]}  Nf6 {[%clk 0:02:57]} 4. Bd3 {[%clk 0:03:00]}  Bg4 {[%clk 0:02:56]} 5. h3 {[%clk 0:02:58]}  Bxf3 {[%clk 0:02:56]} 6. Qxf3 {[%clk 0:02:58]}  Nc6 {[%clk 0:02:56]} 7. Bc2 {[%clk 0:02:58]}  g6 {[%clk 0:02:55]} 8. O-O {[%clk 0:02:57]}  Bg7 {[%clk 0:02:54]} 9. Qd1 {[%clk 0:02:52]}  Nd7 {[%clk 0:02:51]} 10. d3 {[%clk 0:02:51]}  b5 {[%clk 0:02:35]} 11. Be3 {[%clk 0:02:50]}  Qb6 {[%clk 0:02:35]} 12. Nd2 {[%clk 0:02:50]}  O-O {[%clk 0:02:32]} 13. f4 {[%clk 0:02:36]}  b4 {[%clk 0:02:29]} 14. Nc4 {[%clk 0:02:34]}  Qc7 {[%clk 0:02:29]} 15. Qe1 {[%clk 0:02:12]}  Nb6 {[%clk 0:02:11]} 16. Bb3 {[%clk 0:02:02]}  bxc3 {[%clk 0:01:19]} 17. bxc3 {[%clk 0:02:00]}  Nxc4 {[%clk 0:01:20]} 18. Bxc4 {[%clk 0:01:58]}  Na5 {[%clk 0:01:09]} 19. Bd5 {[%clk 0:01:57]}  Rae8 {[%clk 0:01:10]} 20. f5 {[%clk 0:01:41]}  e6 {[%clk 0:01:07]} 21. f6 {[%clk 0:01:39]}  Bh8 {[%clk 0:00:55]} 22. Bb3 {[%clk 0:01:35]}  c4 {[%clk 0:00:51]} 23. Ba4 {[%clk 0:01:22]}  cxd3 {[%clk 0:00:38]} 24. Bxe8 {[%clk 0:01:21]}  Rxe8 {[%clk 0:00:39]} 25. Rd1 {[%clk 0:01:20]}  Qc4 {[%clk 0:00:34]} 26. Bxa7 {[%clk 0:01:10]}  Nc6 {[%clk 0:00:27]} 27. Qe3 {[%clk 0:00:59]}  Qxa2 {[%clk 0:00:19]} 28. Bb6 {[%clk 0:00:56]}  Qb3 {[%clk 0:00:17]} 29. Rxd3 {[%clk 0:00:52]}  Ne5 {[%clk 0:00:18]} 30. Rxd6 {[%clk 0:00:38]}  Nc4 {[%clk 0:00:18]} 31. Qd4 {[%clk 0:00:36]}  Nxd6 {[%clk 0:00:17]} 32. Qxd6 {[%clk 0:00:36]}  Qxc3 {[%clk 0:00:16]} 33. Bd4 {[%clk 0:00:34]}  Qc8 {[%clk 0:00:12]} 34. e5 {[%clk 0:00:33]}  h6 {[%clk 0:00:11]} 35. Qc5 {[%clk 0:00:29]}  Qa8 {[%clk 0:00:10]} 36. Be3 {[%clk 0:00:27]}  Kh7 {[%clk 0:00:08]} 37. Qd4 {[%clk 0:00:25]}  Qa5 {[%clk 0:00:03]} 38. Qf4 {[%clk 0:00:22]}  Kg8 {[%clk 0:00:02]} 39. h4 {[%clk 0:00:16]}  h5 {[%clk 0:00:03]} 40. Qg3 {[%clk 0:00:15]}  Qd5 {[%clk 0:00:02]} 41. Bf4 {[%clk 0:00:15]}  Qe4 {[%clk 0:00:03]} 42. Qf3 {[%clk 0:00:15]}  Qd4+ {[%clk 0:00:02]} 43. Qe3 {[%clk 0:00:14]}  Qd5 {[%clk 0:00:02]} 44. Rc1 {[%clk 0:00:15]}  Qb5 {[%clk 0:00:02]} 45. Qc5 {[%clk 0:00:14]}  Qa4 {[%clk 0:00:01]} 46. g3 {[%clk 0:00:12]}  Qa8 {[%clk 0:00:01]} 47. Qc6 {[%clk 0:00:11]}  Qd8 {[%clk 0:00:01]} 48. Kh2 {[%clk 0:00:08]}  Qd4 {[%clk 0:00:02]} 49. Qxe8+ {[%clk 0:00:07]} 1-0


[Site "https://www.chess.com"]

[Event "Titled Tuesday Blitz June 15 2021"]
[White "Dobrov, Vladimir"]
[Black "Stribuk, Artiom"]
[WhiteFideId "4136594"]
[BlackFideId "13515659"]
[WhiteElo "2614"]
[BlackElo "2177"]
[Result "0-1"]
[Round "05"]
[TimeControl "180+1"]
[Date "2021.06.15"]
[WhiteClock "0:01:08"]
[BlackClock "0:00:22"]

1. d4 {[%clk 0:03:00]}  Nf6 {[%clk 0:02:58]} 2. c4 {[%clk 0:03:00]}  g6 {[%clk 0:02:58]} 3. Nc3 {[%clk 0:02:58]}  d5 {[%clk 0:02:56]} 4. cxd5 {[%clk 0:02:54]}  Nxd5 {[%clk 0:02:54]} 5. e4 {[%clk 0:02:55]}  Nxc3 {[%clk 0:02:49]} 6. bxc3 {[%clk 0:02:56]}  Bg7 {[%clk 0:02:50]} 7. Nf3 {[%clk 0:02:55]}  c5 {[%clk 0:02:48]} 8. Rb1 {[%clk 0:02:55]}  O-O {[%clk 0:02:41]} 9. Be2 {[%clk 0:02:52]}  cxd4 {[%clk 0:02:39]} 10. cxd4 {[%clk 0:02:50]}  Qa5+ {[%clk 0:02:38]} 11. Bd2 {[%clk 0:02:49]}  Qxa2 {[%clk 0:02:37]} 12. O-O {[%clk 0:02:49]}  b6 {[%clk 0:02:36]} 13. Qc1 {[%clk 0:02:22]}  Qe6 {[%clk 0:02:27]} 14. Ng5 {[%clk 0:02:07]}  Qc6 {[%clk 0:02:06]} 15. Qb2 {[%clk 0:02:03]}  Ba6 {[%clk 0:01:52]} 16. Bxa6 {[%clk 0:01:54]}  Nxa6 {[%clk 0:01:49]} 17. Qa3 {[%clk 0:01:53]}  Nc7 {[%clk 0:01:30]} 18. Rfc1 {[%clk 0:01:48]}  Qd7 {[%clk 0:01:26]} 19. d5 {[%clk 0:01:21]}  Nb5 {[%clk 0:00:52]} 20. Qa4 {[%clk 0:01:17]}  a6 {[%clk 0:00:52]} 21. Nf3 {[%clk 0:01:12]}  Rfc8 {[%clk 0:00:47]} 22. Rxc8+ {[%clk 0:01:12]}  Qxc8 {[%clk 0:00:43]} 23. h3 {[%clk 0:01:11]}  Qc5 {[%clk 0:00:29]} 24. Be3 {[%clk 0:01:08]}  Nc3 {[%clk 0:00:22]} 25. Bxc5 {[%clk 0:01:08]}  Nxa4 {[%clk 0:00:23]} 26. Bd6 {[%clk 0:01:08]}  exd6 {[%clk 0:00:22]} 0-1


[Site "https://www.chess.com"]

[Event "Titled Tuesday Blitz June 15 2021"]
[White "Drygalov, Sergey"]
[Black "Lodici, Lorenzo"]
[WhiteFideId "24171743"]
[BlackFideId "884189"]
[WhiteElo "2514"]
[BlackElo "2265"]
[Result "1-0"]
[Round "05"]
[TimeControl "180+1"]
[Date "2021.06.15"]
[WhiteClock "0:01:52"]
[BlackClock "0:00:58"]

1. d4 {[%clk 0:03:00]}  Nf6 {[%clk 0:02:58]} 2. Nf3 {[%clk 0:03:00]}  e6 {[%clk 0:02:58]} 3. c4 {[%clk 0:02:59]}  d5 {[%clk 0:02:57]} 4. Nc3 {[%clk 0:02:59]}  dxc4 {[%clk 0:02:56]} 5. e4 {[%clk 0:02:59]}  Bb4 {[%clk 0:02:55]} 6. Bxc4 {[%clk 0:02:59]}  Nxe4 {[%clk 0:02:51]} 7. O-O {[%clk 0:02:59]}  Nxc3 {[%clk 0:02:51]} 8. bxc3 {[%clk 0:03:00]}  Be7 {[%clk 0:02:51]} 9. Ne5 {[%clk 0:02:59]}  O-O {[%clk 0:02:51]} 10. Qg4 {[%clk 0:02:59]}  Nc6 {[%clk 0:02:51]} 11. Bf4 {[%clk 0:02:57]}  Nxe5 {[%clk 0:02:44]} 12. dxe5 {[%clk 0:02:56]}  Bd7 {[%clk 0:02:32]} 13. Rad1 {[%clk 0:02:55]}  Qe8 {[%clk 0:02:31]} 14. Bh6 {[%clk 0:02:53]}  g6 {[%clk 0:02:28]} 15. Bxf8 {[%clk 0:02:52]}  Bxf8 {[%clk 0:02:29]} 16. Bd3 {[%clk 0:02:45]}  Bg7 {[%clk 0:02:23]} 17. Rfe1 {[%clk 0:02:44]}  Rb8 {[%clk 0:02:16]} 18. Qc4 {[%clk 0:02:39]}  Rc8 {[%clk 0:02:11]} 19. Be4 {[%clk 0:02:36]}  b5 {[%clk 0:02:04]} 20. Qc5 {[%clk 0:02:35]}  Bf8 {[%clk 0:01:57]} 21. Qxa7 {[%clk 0:02:33]}  Bc6 {[%clk 0:01:57]} 22. Qd4 {[%clk 0:02:30]}  Ra8 {[%clk 0:01:56]} 23. Re2 {[%clk 0:02:24]}  Ra4 {[%clk 0:01:47]} 24. Qd3 {[%clk 0:02:23]}  Bxe4 {[%clk 0:01:43]} 25. Rxe4 {[%clk 0:02:23]}  Rxa2 {[%clk 0:01:43]} 26. Rd4 {[%clk 0:02:21]}  Qc6 {[%clk 0:01:26]} 27. h4 {[%clk 0:02:08]}  Kg7 {[%clk 0:01:22]} 28. Rf4 {[%clk 0:02:07]}  h5 {[%clk 0:01:18]} 29. Qd7 {[%clk 0:02:04]}  Qxd7 {[%clk 0:01:14]} 30. Rxd7 {[%clk 0:02:03]}  Bc5 {[%clk 0:01:05]} 31. Rfxf7+ {[%clk 0:02:02]}  Kg8 {[%clk 0:01:05]} 32. Rf6 {[%clk 0:02:02]}  Bb6 {[%clk 0:01:02]} 33. Rxg6+ {[%clk 0:01:57]}  Kf8 {[%clk 0:01:01]} 34. Rf6+ {[%clk 0:01:57]}  Kg8 {[%clk 0:01:01]} 35. g4 {[%clk 0:01:52]}  hxg4 {[%clk 0:01:00]} 36. Kg2 {[%clk 0:01:52]}  Rc2 {[%clk 0:00:58]} 37. h5 {[%clk 0:01:52]}  Rxc3 {[%clk 0:00:57]} 38. h6 {[%clk 0:01:52]}  g3 {[%clk 0:00:58]} 39. h7+ {[%clk 0:01:51]}  Kh8 {[%clk 0:00:58]} 40. Rf8# {[%clk 0:01:52]} 1-0


[Site "https://www.chess.com"]